{"text_format":"1","workbook":"xlsx","n_sheets":2,"sheets":["Matchs","Équipes"],"not_rendered":{"charts":0,"images":0,"macros":0,"external_links":0,"defined_names":0,"comments":0,"pivot_tables":0},"unopened":[],"bounds":{"document_bytes":16777216,"sheet_cells":100000,"rows_first":2000,"rows_last":500,"rows_between":2000,"halvings":0,"cell_chars":16384,"cell_head_chars":4096},"cells_cut":0,"cells_raw":0,"read":"whole","date_system":"1900"}

{"sheet":"Matchs","index":0,"n_rows":494,"n_cols":7,"rows_kept":494,"cut":false,"hidden":false,"merged":[[156,1,156,4],[0,1,0,4],[13,1,13,4],[26,1,26,4],[130,1,130,4],[143,1,143,4],[65,1,65,4],[78,1,78,4],[91,1,91,4],[104,1,104,4],[117,1,117,4],[52,1,52,4],[39,1,39,4],[443,1,443,4],[456,1,456,4],[469,1,469,4],[482,1,482,4],[287,1,287,4],[352,1,352,4],[365,1,365,4],[378,1,378,4],[391,1,391,4],[404,1,404,4],[417,1,417,4],[430,1,430,4],[313,1,313,4],[326,1,326,4],[339,1,339,4],[300,1,300,4],[261,1,261,4],[170,1,170,4],[183,1,183,4],[196,1,196,4],[209,1,209,4],[222,1,222,4],[235,1,235,4],[248,1,248,4],[274,1,274,4]]}
[1,"samedi 11 août 2018",null,null,null,null,"ÉQUIPES"]
[]
[null,"Angers",null,null,"Nîmes",null,"Amiens"]
[null,"Bordeaux",null,null,"Strasbourg",null,"Angers"]
[null,"Lille",null,null,"Rennes",null,"Bordeaux"]
[null,"Lyon",null,null,"Amiens",null,"Caen"]
[null,"Marseille",null,null,"Toulouse",null,"Dijon"]
[null,"Montpellier",null,null,"Dijon",null,"Guingamp"]
[null,"Nantes",null,null,"Monaco",null,"Lille"]
[null,"Nice",null,null,"Reims",null,"Lyon"]
[null,"Paris-SG",null,null,"Caen",null,"Marseille"]
[null,"Saint-Etienne",null,null,"Guingamp",null,"Monaco"]
[null,null,null,null,null,null,"Montpellier"]
[2,"2018-08-18",null,null,null,null,"Nantes"]
[null,null,null,null,null,null,"Nice"]
[null,"Amiens",null,null,"Montpellier",null,"Nîmes"]
[null,"Caen",null,null,"Nice",null,"Paris-SG"]
[null,"Dijon",null,null,"Nantes",null,"Reims"]
[null,"Guingamp",null,null,"Paris-SG",null,"Rennes"]
[null,"Monaco",null,null,"Lille",null,"Saint-Etienne"]
[null,"Nîmes",null,null,"Marseille",null,"Strasbourg"]
[null,"Reims",null,null,"Lyon",null,"Toulouse"]
[null,"Rennes",null,null,"Angers"]
[null,"Strasbourg",null,null,"Saint-Etienne"]
[null,"Toulouse",null,null,"Bordeaux"]
[]
[3,"2018-08-25"]
[]
[null,"Amiens",null,null,"Reims"]
[null,"Bordeaux",null,null,"Monaco"]
[null,"Lille",null,null,"Guingamp"]
[null,"Lyon",null,null,"Strasbourg"]
[null,"Marseille",null,null,"Rennes"]
[null,"Montpellier",null,null,"Saint-Etienne"]
[null,"Nantes",null,null,"Caen"]
[null,"Nice",null,null,"Dijon"]
[null,"Paris-SG",null,null,"Angers"]
[null,"Toulouse",null,null,"Nîmes"]
[]
[4,"2018-09-01"]
[]
[null,"Angers",null,null,"Lille"]
[null,"Dijon",null,null,"Caen"]
[null,"Guingamp",null,null,"Toulouse"]
[null,"Lyon",null,null,"Nice"]
[null,"Monaco",null,null,"Marseille"]
[null,"Nîmes",null,null,"Paris-SG"]
[null,"Reims",null,null,"Montpellier"]
[null,"Rennes",null,null,"Bordeaux"]
[null,"Saint-Etienne",null,null,"Amiens"]
[null,"Strasbourg",null,null,"Nantes"]
[]
[5,"2018-09-15"]
[]
[null,"Amiens",null,null,"Lille"]
[null,"Bordeaux",null,null,"Nîmes"]
[null,"Caen",null,null,"Lyon"]
[null,"Dijon",null,null,"Angers"]
[null,"Marseille",null,null,"Guingamp"]
[null,"Montpellier",null,null,"Strasbourg"]
[null,"Nantes",null,null,"Reims"]
[null,"Nice",null,null,"Rennes"]
[null,"Paris-SG",null,null,"Saint-Etienne"]
[null,"Toulouse",null,null,"Monaco"]
[]
[6,"2018-09-22"]
[]
[null,"Angers",null,null,"Toulouse"]
[null,"Guingamp",null,null,"Bordeaux"]
[null,"Lille",null,null,"Nantes"]
[null,"Lyon",null,null,"Marseille"]
[null,"Monaco",null,null,"Nîmes"]
[null,"Montpellier",null,null,"Nice"]
[null,"Reims",null,null,"Dijon"]
[null,"Rennes",null,null,"Paris-SG"]
[null,"Saint-Etienne",null,null,"Caen"]
[null,"Strasbourg",null,null,"Amiens"]
[]
[7,"2018-09-26"]
[]
[null,"Amiens",null,null,"Rennes"]
[null,"Bordeaux",null,null,"Lille"]
[null,"Caen",null,null,"Montpellier"]
[null,"Dijon",null,null,"Lyon"]
[null,"Marseille",null,null,"Strasbourg"]
[null,"Monaco",null,null,"Angers"]
[null,"Nantes",null,null,"Nice"]
[null,"Nîmes",null,null,"Guingamp"]
[null,"Paris-SG",null,null,"Reims"]
[null,"Toulouse",null,null,"Saint-Etienne"]
[]
[8,"2018-09-29"]
[]
[null,"Angers",null,null,"Guingamp"]
[null,"Caen",null,null,"Amiens"]
[null,"Lille",null,null,"Marseille"]
[null,"Lyon",null,null,"Nantes"]
[null,"Montpellier",null,null,"Nîmes"]
[null,"Nice",null,null,"Paris-SG"]
[null,"Reims",null,null,"Bordeaux"]
[null,"Rennes",null,null,"Toulouse"]
[null,"Saint-Etienne",null,null,"Monaco"]
[null,"Strasbourg",null,null,"Dijon"]
[]
[9,"2018-10-06"]
[]
[null,"Amiens",null,null,"Dijon"]
[null,"Angers",null,null,"Strasbourg"]
[null,"Bordeaux",null,null,"Nantes"]
[null,"Guingamp",null,null,"Montpellier"]
[null,"Lille",null,null,"Saint-Etienne"]
[null,"Marseille",null,null,"Caen"]
[null,"Monaco",null,null,"Rennes"]
[null,"Nîmes",null,null,"Reims"]
[null,"Paris-SG",null,null,"Lyon"]
[null,"Toulouse",null,null,"Nice"]
[]
[10,"2018-10-20"]
[]
[null,"Caen",null,null,"Guingamp"]
[null,"Dijon",null,null,"Lille"]
[null,"Lyon",null,null,"Nîmes"]
[null,"Montpellier",null,null,"Bordeaux"]
[null,"Nantes",null,null,"Toulouse"]
[null,"Nice",null,null,"Marseille"]
[null,"Paris-SG",null,null,"Amiens"]
[null,"Reims",null,null,"Angers"]
[null,"Saint-Etienne",null,null,"Rennes"]
[null,"Strasbourg",null,null,"Monaco"]
[]
[11,"2018-10-27"]
[]
[null,"Amiens",null,null,"Nantes"]
[null,"Angers",null,null,"Lyon"]
[null,"Bordeaux",null,null,"Nice"]
[null,"Guingamp",null,null,"Strasbourg"]
[null,"Lille",null,null,"Caen"]
[null,"Marseille",null,null,"Paris-SG"]
[null,"Monaco",null,null,"Dijon"]
[null,"Nîmes",null,null,"Saint-Etienne"]
[null,"Rennes",null,null,"Reims"]
[null,"Toulouse",null,null,"Montpellier"]
[]
[12,"2018-11-03"]
[]
[null,"Caen",null,null,"Rennes"]
[null,"Dijon",null,null,"Nîmes"]
[null,"Lyon",null,null,"Bordeaux"]
[null,"Montpellier",null,null,"Marseille"]
[null,"Nantes",null,null,"Guingamp"]
[null,"Nice",null,null,"Amiens"]
[null,"Paris-SG",null,null,"Lille"]
[null,"Reims",null,null,"Monaco"]
[null,"Saint-Etienne",null,null,"Angers"]
[null,"Strasbourg",null,null,"Toulouse"]
[]
[13,"2018-11-10"]
[]
[null,"Angers",null,null,"Montpellier"]
[null,"Bordeaux",null,null,"Caen"]
[null,"Guingamp",null,null,"Lyon"]
[null,"Lille",null,null,"Strasbourg"]
[null,"Marseille",null,null,"Dijon"]
[null,"Monaco",null,null,"Paris-SG"]
[null,"Nîmes",null,null,"Nice"]
[null,"Rennes",null,null,"Nantes"]
[null,"Saint-Etienne",null,null,"Reims"]
[null,"Toulouse",null,null,"Amiens"]
[]
[]
[14,"2018-11-24"]
[]
[null,"Amiens",null,null,"Marseille"]
[null,"Caen",null,null,"Monaco"]
[null,"Dijon",null,null,"Bordeaux"]
[null,"Lyon",null,null,"Saint-Etienne"]
[null,"Montpellier",null,null,"Rennes"]
[null,"Nantes",null,null,"Angers"]
[null,"Nice",null,null,"Lille"]
[null,"Paris-SG",null,null,"Toulouse"]
[null,"Reims",null,null,"Guingamp"]
[null,"Strasbourg",null,null,"Nîmes"]
[]
[15,"2018-12-01"]
[]
[null,"Angers",null,null,"Caen"]
[null,"Bordeaux",null,null,"Paris-SG"]
[null,"Guingamp",null,null,"Nice"]
[null,"Lille",null,null,"Lyon"]
[null,"Marseille",null,null,"Reims"]
[null,"Monaco",null,null,"Montpellier"]
[null,"Nîmes",null,null,"Amiens"]
[null,"Rennes",null,null,"Strasbourg"]
[null,"Saint-Etienne",null,null,"Nantes"]
[null,"Toulouse",null,null,"Dijon"]
[]
[16,"2018-12-05"]
[]
[null,"Amiens",null,null,"Monaco"]
[null,"Bordeaux",null,null,"Saint-Etienne"]
[null,"Caen",null,null,"Nîmes"]
[null,"Dijon",null,null,"Guingamp"]
[null,"Lyon",null,null,"Rennes"]
[null,"Montpellier",null,null,"Lille"]
[null,"Nantes",null,null,"Marseille"]
[null,"Nice",null,null,"Angers"]
[null,"Reims",null,null,"Toulouse"]
[null,"Strasbourg",null,null,"Paris-SG"]
[]
[17,"2018-12-08"]
[]
[null,"Angers",null,null,"Bordeaux"]
[null,"Guingamp",null,null,"Amiens"]
[null,"Lille",null,null,"Reims"]
[null,"Monaco",null,null,"Nice"]
[null,"Nîmes",null,null,"Nantes"]
[null,"Paris-SG",null,null,"Montpellier"]
[null,"Rennes",null,null,"Dijon"]
[null,"Saint-Etienne",null,null,"Marseille"]
[null,"Strasbourg",null,null,"Caen"]
[null,"Toulouse",null,null,"Lyon"]
[]
[18,"2018-12-15"]
[]
[null,"Amiens",null,null,"Angers"]
[null,"Caen",null,null,"Toulouse"]
[null,"Dijon",null,null,"Paris-SG"]
[null,"Guingamp",null,null,"Rennes"]
[null,"Lyon",null,null,"Monaco"]
[null,"Marseille",null,null,"Bordeaux"]
[null,"Nantes",null,null,"Montpellier"]
[null,"Nice",null,null,"Saint-Etienne"]
[null,"Nîmes",null,null,"Lille"]
[null,"Reims",null,null,"Strasbourg"]
[]
[19,"2018-12-22"]
[]
[null,"Angers",null,null,"Marseille"]
[null,"Bordeaux",null,null,"Amiens"]
[null,"Lille",null,null,"Toulouse"]
[null,"Monaco",null,null,"Guingamp"]
[null,"Montpellier",null,null,"Lyon"]
[null,"Paris-SG",null,null,"Nantes"]
[null,"Reims",null,null,"Caen"]
[null,"Rennes",null,null,"Nîmes"]
[null,"Saint-Etienne",null,null,"Dijon"]
[null,"Strasbourg",null,null,"Nice"]
[]
[20,"2019-01-12"]
[]
[null,"Amiens",null,null,"Paris-SG"]
[null,"Caen",null,null,"Lille"]
[null,"Dijon",null,null,"Montpellier"]
[null,"Guingamp",null,null,"Saint-Etienne"]
[null,"Lyon",null,null,"Reims"]
[null,"Marseille",null,null,"Monaco"]
[null,"Nantes",null,null,"Rennes"]
[null,"Nice",null,null,"Bordeaux"]
[null,"Nîmes",null,null,"Angers"]
[null,"Toulouse",null,null,"Strasbourg"]
[]
[21,"2019-01-19"]
[]
[null,"Angers",null,null,"Nantes"]
[null,"Bordeaux",null,null,"Dijon"]
[null,"Caen",null,null,"Marseille"]
[null,"Lille",null,null,"Amiens"]
[null,"Monaco",null,null,"Strasbourg"]
[null,"Nîmes",null,null,"Toulouse"]
[null,"Paris-SG",null,null,"Guingamp"]
[null,"Reims",null,null,"Nice"]
[null,"Rennes",null,null,"Montpellier"]
[null,"Saint-Etienne",null,null,"Lyon"]
[]
[22,"2019-01-26"]
[]
[null,"Amiens",null,null,"Lyon"]
[null,"Dijon",null,null,"Monaco"]
[null,"Guingamp",null,null,"Reims"]
[null,"Marseille",null,null,"Lille"]
[null,"Montpellier",null,null,"Caen"]
[null,"Nantes",null,null,"Saint-Etienne"]
[null,"Nice",null,null,"Nîmes"]
[null,"Paris-SG",null,null,"Rennes"]
[null,"Strasbourg",null,null,"Bordeaux"]
[null,"Toulouse",null,null,"Angers"]
[]
[23,"2019-02-02"]
[]
[null,"Angers",null,null,"Dijon"]
[null,"Bordeaux",null,null,"Guingamp"]
[null,"Caen",null,null,"Nantes"]
[null,"Lille",null,null,"Nice"]
[null,"Lyon",null,null,"Paris-SG"]
[null,"Monaco",null,null,"Toulouse"]
[null,"Nîmes",null,null,"Montpellier"]
[null,"Reims",null,null,"Marseille"]
[null,"Rennes",null,null,"Amiens"]
[null,"Saint-Etienne",null,null,"Strasbourg"]
[]
[24,"2019-02-09"]
[]
[null,"Amiens",null,null,"Caen"]
[null,"Dijon",null,null,"Marseille"]
[null,"Guingamp",null,null,"Lille"]
[null,"Montpellier",null,null,"Monaco"]
[null,"Nantes",null,null,"Nîmes"]
[null,"Nice",null,null,"Lyon"]
[null,"Paris-SG",null,null,"Bordeaux"]
[null,"Rennes",null,null,"Saint-Etienne"]
[null,"Strasbourg",null,null,"Angers"]
[null,"Toulouse",null,null,"Reims"]
[]
[25,"2019-02-16"]
[]
[null,"Angers",null,null,"Nice"]
[null,"Bordeaux",null,null,"Toulouse"]
[null,"Caen",null,null,"Strasbourg"]
[null,"Lille",null,null,"Montpellier"]
[null,"Lyon",null,null,"Guingamp"]
[null,"Marseille",null,null,"Amiens"]
[null,"Monaco",null,null,"Nantes"]
[null,"Nîmes",null,null,"Dijon"]
[null,"Reims",null,null,"Rennes"]
[null,"Saint-Etienne",null,null,"Paris-SG"]
[]
[26,"2019-02-23"]
[]
[null,"Amiens",null,null,"Nice"]
[null,"Dijon",null,null,"Saint-Etienne"]
[null,"Guingamp",null,null,"Angers"]
[null,"Monaco",null,null,"Lyon"]
[null,"Montpellier",null,null,"Reims"]
[null,"Nantes",null,null,"Bordeaux"]
[null,"Paris-SG",null,null,"Nîmes"]
[null,"Rennes",null,null,"Marseille"]
[null,"Strasbourg",null,null,"Lille"]
[null,"Toulouse",null,null,"Caen"]
[]
[27,"2019-03-02"]
[]
[null,"Angers",null,null,"Monaco"]
[null,"Bordeaux",null,null,"Montpellier"]
[null,"Caen",null,null,"Paris-SG"]
[null,"Guingamp",null,null,"Nantes"]
[null,"Lille",null,null,"Dijon"]
[null,"Lyon",null,null,"Toulouse"]
[null,"Marseille",null,null,"Saint-Etienne"]
[null,"Nice",null,null,"Strasbourg"]
[null,"Nîmes",null,null,"Rennes"]
[null,"Reims",null,null,"Amiens"]
[]
[28,"2019-03-02"]
[]
[null,"Amiens",null,null,"Nîmes"]
[null,"Dijon",null,null,"Reims"]
[null,"Marseille",null,null,"Nice"]
[null,"Monaco",null,null,"Bordeaux"]
[null,"Montpellier",null,null,"Angers"]
[null,"Nantes",null,null,"Paris-SG"]
[null,"Rennes",null,null,"Caen"]
[null,"Saint-Etienne",null,null,"Lille"]
[null,"Strasbourg",null,null,"Lyon"]
[null,"Toulouse",null,null,"Guingamp"]
[]
[29,"2019-03-16"]
[]
[null,"Angers",null,null,"Amiens"]
[null,"Bordeaux",null,null,"Rennes"]
[null,"Caen",null,null,"Saint-Etienne"]
[null,"Guingamp",null,null,"Dijon"]
[null,"Lille",null,null,"Monaco"]
[null,"Lyon",null,null,"Montpellier"]
[null,"Nice",null,null,"Toulouse"]
[null,"Nîmes",null,null,"Strasbourg"]
[null,"Paris-SG",null,null,"Marseille"]
[null,"Reims",null,null,"Nantes"]
[]
[30,"2019-03-31"]
[]
[null,"Amiens",null,null,"Bordeaux"]
[null,"Dijon",null,null,"Nice"]
[null,"Marseille",null,null,"Angers"]
[null,"Monaco",null,null,"Caen"]
[null,"Montpellier",null,null,"Guingamp"]
[null,"Nantes",null,null,"Lille"]
[null,"Rennes",null,null,"Lyon"]
[null,"Saint-Etienne",null,null,"Nîmes"]
[null,"Strasbourg",null,null,"Reims"]
[null,"Toulouse",null,null,"Paris-SG"]
[]
[31,"2019-04-06"]
[]
[null,"Amiens",null,null,"Saint-Etienne"]
[null,"Angers",null,null,"Rennes"]
[null,"Bordeaux",null,null,"Marseille"]
[null,"Guingamp",null,null,"Monaco"]
[null,"Lyon",null,null,"Dijon"]
[null,"Nice",null,null,"Montpellier"]
[null,"Nîmes",null,null,"Caen"]
[null,"Paris-SG",null,null,"Strasbourg"]
[null,"Reims",null,null,"Lille"]
[null,"Toulouse",null,null,"Nantes"]
[]
[32,"2019-04-13"]
[]
[null,"Caen",null,null,"Angers"]
[null,"Dijon",null,null,"Amiens"]
[null,"Lille",null,null,"Paris-SG"]
[null,"Marseille",null,null,"Nîmes"]
[null,"Monaco",null,null,"Reims"]
[null,"Montpellier",null,null,"Toulouse"]
[null,"Nantes",null,null,"Lyon"]
[null,"Rennes",null,null,"Nice"]
[null,"Saint-Etienne",null,null,"Bordeaux"]
[null,"Strasbourg",null,null,"Guingamp"]
[]
[33,"2019-04-20"]
[]
[null,"Dijon",null,null,"Rennes"]
[null,"Guingamp",null,null,"Marseille"]
[null,"Lyon",null,null,"Angers"]
[null,"Nantes",null,null,"Amiens"]
[null,"Nice",null,null,"Caen"]
[null,"Nîmes",null,null,"Bordeaux"]
[null,"Paris-SG",null,null,"Monaco"]
[null,"Reims",null,null,"Saint-Etienne"]
[null,"Strasbourg",null,null,"Montpellier"]
[null,"Toulouse",null,null,"Lille"]
[]
[34,"2019-04-28"]
[]
[null,"Amiens",null,null,"Strasbourg"]
[null,"Angers",null,null,"Reims"]
[null,"Bordeaux",null,null,"Lyon"]
[null,"Caen",null,null,"Dijon"]
[null,"Lille",null,null,"Nîmes"]
[null,"Marseille",null,null,"Nantes"]
[null,"Montpellier",null,null,"Paris-SG"]
[null,"Nice",null,null,"Guingamp"]
[null,"Rennes",null,null,"Monaco"]
[null,"Saint-Etienne",null,null,"Toulouse"]
[]
[35,"2019-05-04"]
[]
[null,"Bordeaux",null,null,"Angers"]
[null,"Guingamp",null,null,"Caen"]
[null,"Lyon",null,null,"Lille"]
[null,"Monaco",null,null,"Saint-Etienne"]
[null,"Montpellier",null,null,"Amiens"]
[null,"Nantes",null,null,"Dijon"]
[null,"Paris-SG",null,null,"Nice"]
[null,"Reims",null,null,"Nîmes"]
[null,"Strasbourg",null,null,"Marseille"]
[null,"Toulouse",null,null,"Rennes"]
[]
[36,"2019-05-11"]
[]
[null,"Amiens",null,null,"Toulouse"]
[null,"Angers",null,null,"Paris-SG"]
[null,"Caen",null,null,"Reims"]
[null,"Dijon",null,null,"Strasbourg"]
[null,"Lille",null,null,"Bordeaux"]
[null,"Marseille",null,null,"Lyon"]
[null,"Nice",null,null,"Nantes"]
[null,"Nîmes",null,null,"Monaco"]
[null,"Rennes",null,null,"Guingamp"]
[null,"Saint-Etienne",null,null,"Montpellier"]
[]
[37,"2019-05-18"]
[]
[null,"Bordeaux",null,null,"Reims"]
[null,"Guingamp",null,null,"Nîmes"]
[null,"Lille",null,null,"Angers"]
[null,"Lyon",null,null,"Caen"]
[null,"Monaco",null,null,"Amiens"]
[null,"Montpellier",null,null,"Nantes"]
[null,"Paris-SG",null,null,"Dijon"]
[null,"Saint-Etienne",null,null,"Nice"]
[null,"Strasbourg",null,null,"Rennes"]
[null,"Toulouse",null,null,"Marseille"]
[]
[38,"2019-05-25"]
[]
[null,"Amiens",null,null,"Guingamp"]
[null,"Angers",null,null,"Saint-Etienne"]
[null,"Caen",null,null,"Bordeaux"]
[null,"Dijon",null,null,"Toulouse"]
[null,"Marseille",null,null,"Montpellier"]
[null,"Nantes",null,null,"Strasbourg"]
[null,"Nice",null,null,"Monaco"]
[null,"Nîmes",null,null,"Lyon"]
[null,"Reims",null,null,"Paris-SG"]
[null,"Rennes",null,null,"Lille"]

{"sheet":"Équipes","index":1,"n_rows":76,"n_cols":98,"rows_kept":76,"cut":false,"hidden":false,"merged":[[0,57,0,60],[0,2,0,5],[0,7,0,10],[0,12,0,15],[0,17,0,20],[0,22,0,25],[0,27,0,30],[0,32,0,35],[0,37,0,40],[0,42,0,45],[0,47,0,50],[0,52,0,55],[0,92,0,95],[0,97,0,100],[0,62,0,65],[0,67,0,70],[0,72,0,75],[0,77,0,80],[0,82,0,85],[0,87,0,90]]}
[null,null,{"$f":"Matchs!G3","v":"Amiens"},null,null,null,null,{"$f":"Matchs!G4","v":"Angers"},null,null,null,null,{"$f":"Matchs!G5","v":"Bordeaux"},null,null,null,null,{"$f":"Matchs!G6","v":"Caen"},null,null,null,null,{"$f":"Matchs!G7","v":"Dijon"},null,null,null,null,{"$f":"Matchs!G8","v":"Guingamp"},null,null,null,null,{"$f":"Matchs!G9","v":"Lille"},null,null,null,null,{"$f":"Matchs!G10","v":"Lyon"},null,null,null,null,{"$f":"Matchs!G11","v":"Marseille"},null,null,null,null,{"$f":"Matchs!G12","v":"Monaco"},null,null,null,null,{"$f":"Matchs!G13","v":"Montpellier"},null,null,null,null,{"$f":"Matchs!G14","v":"Nantes"},null,null,null,null,{"$f":"Matchs!G15","v":"Nice"},null,null,null,null,{"$f":"Matchs!G16","v":"Nîmes"},null,null,null,null,{"$f":"Matchs!G17","v":"Paris-SG"},null,null,null,null,{"$f":"Matchs!G18","v":"Reims"},null,null,null,null,{"$f":"Matchs!G19","v":"Rennes"},null,null,null,null,{"$f":"Matchs!G20","v":"Saint-Etienne"},null,null,null,null,{"$f":"Matchs!G21","v":"Strasbourg"},null,null,null,null,{"$f":"Matchs!G22","v":"Toulouse"}]
["1ère journée",null,{"$f":"Matchs!B6","v":"Lyon"},{"$f":"Matchs!C6","v":0},{"$f":"Matchs!D6","v":0},{"$f":"Matchs!E6","v":"Amiens"}]
[]
["2ème journée"]
[]
["3ème journée"]
[]
["4ème journée"]
[]
["5ème journée"]
[]
["6ème journée"]
[]
["7ème journée"]
[]
["8ème journée"]
[]
["9ème journée"]
[]
["10ème journée"]
[]
["11ème journée"]
[]
["12ème journée"]
[]
["13ème journée"]
[]
["14ème journée"]
[]
["15ème journée"]
[]
["16ème journée"]
[]
["17ème journée"]
[]
["18ème journée"]
[]
["19ème journée"]
[]
["20ème journée"]
[]
["21ème journée"]
[]
["22ème journée"]
[]
["23ème journée"]
[]
["24ème journée"]
[]
["25ème journée"]
[]
["26ème journée"]
[]
["27ème journée"]
[]
["28ème journée"]
[]
["29ème journée"]
[]
["30ème journée"]
[]
["31ème journée"]
[]
["32ème journée"]
[]
["33ème journée"]
[]
["34ème journée"]
[]
["35ème journée"]
[]
["36ème journée"]
[]
["37ème journée"]
[]
["38ème journée"]